bitfinex/quotes_ETHUSD_20260217
["timestamp","ask_amount","ask_price","bid_price","bid_amount"]
[1771323718243,1.26989179,1970.3,1969.7,0.48357352]
[1771323719769,0.50044736,1970.3,1969.7,0.0011]
[1771323720158,0.001,1970.3,1969.7,0.48357352]
[1771323720361,0.001,1970.3,1969.8,6.00075061]
[1771323720571,0.001,1970.3,1969.9,1.053]
[1771323722282,0.50044736,1970.3,1969.7,0.0011]
[1771323722481,0.49944736,1970.1,1969.7,0.0011]
[1771323724078,1.26902991,1970.1,1969.7,0.0011]
[1771323724575,0.49944736,1970.0,1969.7,0.0011]
[1771323725549,0.49944736,1969.9,1969.4,0.0011]
[1771323725750,0.49944736,1969.9,1969.4,0.0033]
[1771323726376,1.76847727,1970.1,1969.4,0.0033]
[1771323726577,0.49944736,1970.0,1969.4,0.0011]
[1771323726883,0.49944736,1970.0,1969.5,0.0022]
[1771323728480,1.26909995,1969.9,1969.5,0.0022]
[1771323728686,1.76854731,1969.9,1969.5,0.0022]
[1771323729187,1.76854731,1969.9,1969.7,0.0011]
[1771323729388,1.76954731,1969.9,1969.7,0.0011]
[1771323730374,1.76954731,1969.9,1969.7,0.0033]
[1771323731591,1.27009995,1969.9,1969.7,0.0033]
[1771323734695,0.001,1969.9,1969.7,0.0033]
[1771323735994,1.2698808,1970.3,1969.7,0.45454689]
[1771323736198,0.49132261,1970.2,1969.8,0.0012]
[1771323736493,0.49132261,1970.0,1969.5,0.0011]
[1771323737266,1.76042256,1969.9,1969.5,0.0011]
[1771323738101,5.07639981,1970.0,1969.5,0.0011]
[1771323738102,5.56735441,1970.1,1969.5,0.0011]
[1771323738298,0.49132261,1970.1,1969.5,0.0011]
[1771323738598,5.07576957,1970.2,1969.5,0.45454689]
[1771323738599,1.26895085,1970.2,1969.5,0.45454689]
[1771323738795,0.49132261,1970.1,1969.5,0.0011]
[1771323739902,1.26903553,1970.0,1969.5,0.0011]
[1771323741293,1.26903553,1970.0,1969.6,0.0011]
[1771323741500,1.76034076,1970.1,1969.6,0.0011]
[1771323741685,0.001,1969.9,1969.6,0.0011]
[1771323742002,0.001,1969.9,1969.6,1.27039325]
[1771323742714,0.001,1969.9,1969.6,1.72384014]
[1771323742916,1.2698423,1970.3,1969.7,0.45344689]
[1771323744123,0.49232261,1970.3,1969.7,1.046]
[1771323744516,0.49232261,1970.3,1969.6,1.2703923]
[1771323744703,0.49232261,1970.3,1969.6,0.0011]
[1771323744903,0.49232261,1970.3,1969.6,1.2703832]
[1771323745104,0.49232261,1970.3,1969.6,2.3163832]
[1771323745509,0.49232261,1970.3,1969.6,2.76983009]
[1771323746432,0.001,1970.3,1969.7,0.45344689]
[1771323748698,0.001,1970.3,1969.8,1.72261127]
[1771323749423,0.001,1970.3,1969.7,1.26917933]
[1771323749608,0.49232261,1970.3,1969.8,1.045]
[1771323750125,0.001,1970.3,1969.9,0.45344689]
[1771323751728,1.26948557,1970.9,1970.3,0.45344689]
[1771323752029,0.001,1970.9,1970.3,0.45344689]
[1771323752324,0.001,1970.9,1970.4,0.45344689]
[1771323753402,0.001,1970.9,1970.3,1.046]
[1771323753605,1.76078648,1970.9,1970.3,1.2688423]
[1771323756918,0.49232261,1970.9,1970.3,1.2688423]
[1771323757122,0.001,1970.9,1970.3,1.2688423]
[1771323757808,0.001,1970.9,1970.3,1.72228919]
[1771323758837,0.001,1970.9,1970.4,0.45344689]
[1771323759004,0.001,1970.9,1970.5,1.26871352]
[1771323761624,0.001,1970.9,1970.4,1.72217481]
[1771323761828,0.001,1970.9,1970.3,1.26879785]
[1771323761829,0.49232261,1970.9,1970.3,1.26879785]
[1771323762232,0.001,1970.9,1970.3,1.72224474]
[1771323762528,0.001,1970.9,1970.4,0.45344689]
[1771323762941,0.001,1970.9,1970.3,1.26879785]
[1771323763437,0.001,1970.9,1970.3,1.72224474]
[1771323765720,0.001,1970.9,1970.4,0.0011]
[1771323765922,0.001,1970.8,1970.4,0.0011]
[1771323767025,0.001,1970.8,1970.4,0.4788852]
[1771323768047,0.001,1970.8,1970.6,0.4777852]
[1771323769361,1.74025691,1971.2,1970.6,1.046]
[1771323769512,1.74025691,1971.2,1970.4,5.55373929]
[1771323769513,0.47199138,1971.1,1970.4,0.0011]
[1771323769949,0.47199138,1970.9,1970.4,0.0011]
[1771323772129,1.74049526,1970.9,1970.4,0.0011]
[1771323772632,0.47199138,1970.9,1970.4,0.0011]
[1771323772833,1.26841319,1971.0,1970.4,0.0011]
[1771323773050,1.26841319,1971.0,1970.4,0.49391257]
[1771323774447,1.26841319,1971.0,1970.5,1.76152609]
[1771323774621,1.26841319,1971.0,1970.5,1.26871352]
[1771323774822,1.76286775,1971.0,1970.4,5.07609533]
[1771323775029,1.76286775,1971.0,1970.4,1.26987791]
[1771323775826,0.49445456,1970.9,1970.4,0.0011]
[1771323776045,0.49445456,1970.7,1970.4,0.0011]
[1771323776416,1.26864914,1970.6,1970.4,0.0011]
[1771323778444,1.7631037,1970.6,1970.4,0.0011]
[1771323779026,1.7631037,1970.6,1970.5,0.0011]
[1771323779348,0.49445456,1970.6,1970.5,0.0011]
[1771323779540,1.26862542,1970.7,1970.5,0.0011]
[1771323781054,0.49445456,1970.6,1970.5,0.0011]
[1771323781256,0.49445456,1970.6,1970.3,0.0011]
[1771323782543,1.26862542,1970.7,1970.3,0.0011]
[1771323782866,0.001,1970.8,1970.3,0.0011]
[1771323783067,0.001,1970.8,1970.3,0.49391257]
[1771323784229,0.49545456,1970.8,1970.3,0.0011]
[1771323785033,0.49445456,1970.6,1970.3,0.0011]
[1771323786138,0.001,1970.8,1970.3,0.0011]
[1771323786333,1.26952039,1970.8,1970.3,0.0011]
[1771323787749,0.001,1970.8,1970.3,0.0011]
[1771323790666,0.49545456,1970.8,1970.3,0.0011]
[1771323791066,0.49545456,1970.8,1970.4,0.0011]
[1771323791239,0.001,1970.7,1970.4,0.0011]
[1771323791769,0.49445456,1970.6,1970.4,0.0011]
[1771323792867,1.26963056,1970.7,1970.4,0.0011]
[1771323793064,0.001,1970.7,1970.4,0.0011]
[1771323793569,1.26958605,1970.7,1970.4,0.0011]
[1771323794867,0.001,1970.7,1970.4,0.0011]
[1771323795244,0.001,1970.7,1970.4,1.26987791]
[1771323795664,0.001,1970.7,1970.4,0.0011]
[1771323798171,0.001,1970.7,1970.4,0.47946079]
[1771323799573,0.001,1970.7,1970.4,0.0011]
[1771323802876,0.001,1970.6,1970.4,0.0011]
[1771323805058,0.001,1970.6,1970.4,0.47946079]
[1771323806183,0.001,1970.7,1970.5,0.47836079]
[1771323806371,1.76016689,1971.2,1970.5,0.47836079]
[1771323807156,1.76016689,1971.2,1970.6,1.74700993]
[1771323808857,0.49185716,1971.1,1970.5,1.26866549]
[1771323809386,1.26839167,1971.0,1970.5,0.47836079]
[1771323809556,1.26839167,1971.0,1970.5,1.74706873]
[1771323812082,0.49185716,1971.0,1970.5,1.26870794]
[1771323812256,0.49185716,1971.0,1970.4,0.6011]
[1771323812582,0.49185716,1971.0,1970.4,0.0011]
[1771323814690,0.49185716,1970.8,1970.5,0.0011]
[1771323816889,0.49185716,1970.5,1970.3,0.0011]
[1771323817094,0.49185716,1970.5,1970.1,0.0011]
[1771323819176,1.26877791,1970.4,1970.1,0.0011]
[1771323820493,1.76063507,1970.4,1970.1,0.0011]
[1771323821495,0.49185716,1970.6,1970.1,0.0011]
[1771323822063,5.0743798,1970.7,1970.1,0.47946079]
[1771323822266,1.26858476,1970.7,1970.1,0.47946079]
[1771323823599,1.26858476,1970.7,1970.1,1.74840631]
[1771323823796,0.49185716,1970.6,1970.1,0.0011]
[1771323826000,1.26871352,1970.5,1970.1,0.0011]
[1771323827111,1.26871352,1970.5,1970.2,0.0011]
[1771323829178,1.76342105,1970.5,1970.2,0.0011]
[1771323829379,1.26871352,1970.5,1970.2,0.0011]
[1771323830972,0.49594735,1970.4,1970.2,0.0011]
[1771323831177,1.2688423,1970.3,1970.2,0.0011]
[1771323833397,1.76477667,1970.4,1970.2,0.0011]
[1771323833600,5.51454824,1970.6,1970.2,0.0011]
[1771323833601,5.5705503,1970.6,1970.2,0.0011]
[1771323835694,1.76459649,1970.6,1970.2,0.0011]
[1771323839913,1.76459649,1970.6,1970.3,0.0011]
[1771323840219,0.001,1970.5,1970.3,0.0011]
[1771323840999,0.49694735,1970.5,1970.2,0.0011]
[1771323841204,0.49594735,1970.4,1970.2,0.0011]
[1771323841625,0.49594735,1970.4,1970.1,0.0011]
[1771323842322,0.49594735,1970.2,1969.9,0.0011]
[1771323844321,1.26897111,1970.1,1969.9,0.0011]
[1771323850431,1.76478965,1970.3,1969.9,0.0011]
[1771323851226,1.2688423,1970.3,1969.9,0.0011]
[1771323851433,5.07603192,1970.5,1969.9,0.45793599]
[1771323852405,5.57197927,1970.5,1969.9,0.45793599]
[1771323852837,5.57197927,1970.5,1970.0,0.0011]
[1771323854435,0.001,1970.5,1970.0,0.46080886]
[1771323854738,1.26972104,1970.5,1970.0,0.46080886]
[1771323856636,0.46396027,1970.4,1970.0,0.0011]
[1771323856837,1.26972104,1970.5,1970.0,0.0011]
[1771323857041,1.73368131,1970.5,1970.0,0.0011]
[1771323857734,0.46396027,1970.4,1970.0,0.0011]
[1771323858841,1.73280257,1970.3,1970.0,0.0011]
[1771323859038,1.73280257,1970.3,1969.7,0.0011]
[1771323859039,0.46396027,1970.2,1969.7,0.0011]
[1771323859240,0.46396027,1970.1,1969.7,0.0011]
[1771323860042,0.46396027,1969.9,1969.7,0.0011]
[1771323860215,0.46396027,1969.9,1969.6,0.0011]
[1771323860542,0.46396027,1969.9,1969.4,0.0011]
[1771323861331,1.73312465,1969.8,1969.4,0.0011]
[1771323861534,5.07536574,1970.4,1969.5,0.45970886]
[1771323861735,0.46396027,1970.1,1969.4,0.0011]
[1771323861933,0.46396027,1969.9,1969.4,0.0011]
[1771323862345,0.46396027,1969.7,1969.4,0.0011]
[1771323862923,0.863,1969.7,1969.4,0.0011]
[1771323863550,1.26929325,1969.6,1969.4,0.0011]
[1771323863949,1.26917196,1969.8,1969.4,0.0011]
[1771323864163,0.46396027,1970.1,1969.4,0.46080886]
[1771323864380,1.26902195,1970.1,1969.5,0.45970886]
[1771323865537,1.26902195,1970.1,1969.6,0.0011]
[1771323865872,0.001,1969.8,1969.6,0.0011]
[1771323875580,0.001,1969.8,1969.6,0.46080886]
[1771323875881,0.001,1969.8,1969.6,0.0011]
[1771323880579,0.001,1969.8,1969.6,0.46080886]
[1771323881081,0.001,1969.8,1969.6,1.7300937]
[1771323881266,0.001,1969.8,1969.7,0.45970886]
[1771323881468,1.2688423,1970.3,1969.7,0.45970886]
[1771323883094,0.46396027,1970.4,1969.7,1.26916817]
[1771323883287,0.46396027,1970.4,1969.7,1.72887703]
[1771323883491,0.46396027,1970.4,1969.8,0.45970886]
[1771323884986,0.46396027,1970.4,1969.6,0.49745149]
[1771323885289,0.45882635,1970.2,1969.6,1.76669136]
[1771323886590,1.2688423,1970.3,1969.6,1.76669136]
[1771323886591,1.2688423,1970.3,1969.7,0.49635149]
[1771323887875,0.45882635,1970.3,1969.7,1.76553653]
[1771323889170,0.001,1970.2,1969.7,1.76553653]
[1771323891168,0.001,1970.2,1969.8,0.45291163]
[1771323891865,0.001,1970.2,1969.6,0.45401163]
[1771323892195,0.46794835,1970.2,1969.6,0.0011]
[1771323893669,1.73690629,1970.2,1969.6,0.0011]
[1771323893869,1.73690629,1970.2,1969.6,0.45401163]
[1771323896001,1.73690629,1970.2,1969.7,1.26922881]
[1771323896494,1.73690629,1970.2,1969.6,0.45401163]
[1771323896699,1.73690629,1970.2,1969.6,1.72330488]
[1771323897874,0.46694835,1970.1,1969.6,0.45401163]
[1771323898073,0.46694835,1970.1,1969.6,0.0011]
[1771323900106,1.26903553,1970.0,1969.6,0.0011]
[1771323900481,0.46694835,1969.9,1969.6,0.0011]
[1771323900681,1.26903553,1970.0,1969.4,0.0011]
[1771323900682,0.46694835,1969.7,1969.4,0.0011]
[1771323902896,1.7362416,1969.6,1969.4,0.0011]
[1771323906290,1.26929325,1969.6,1969.4,0.0011]
[1771323908401,1.26921019,1969.8,1969.4,0.0011]
[1771323908716,1.73615854,1969.8,1969.4,0.0011]
[1771323909708,1.26921019,1969.8,1969.4,0.0011]
[1771323912717,1.26921019,1969.8,1969.5,0.0011]
[1771323912926,0.001,1969.7,1969.5,0.0011]
[1771323919062,0.866,1970.0,1969.6,0.45481574]
[1771323919203,0.4641915,1969.9,1969.5,0.0011]
[1771323920318,1.73335588,1969.8,1969.5,0.0011]
[1771323921230,1.26916438,1969.8,1969.5,0.0011]
[1771323922733,5.07665752,1969.9,1969.5,0.0011]
[1771323922931,1.26909995,1969.9,1969.5,0.0011]
[1771323925739,1.26909995,1969.9,1969.6,0.0011]
[1771323925934,0.001,1969.8,1969.6,0.0011]
[1771323927326,0.001,1969.8,1969.5,0.0011]
[1771323927849,0.001,1969.8,1969.6,0.45481574]
[1771323928257,0.001,1969.8,1969.5,1.27043746]
[1771323929341,0.001,1969.8,1969.5,0.45591574]
[1771323929548,0.001,1969.8,1969.5,0.0011]
[1771323929724,1.27016438,1969.8,1969.5,0.0011]
[1771323929927,1.73435588,1969.8,1969.5,0.0011]
[1771323931626,0.4641915,1969.5,1969.2,0.0011]
[1771323931943,0.4641915,1969.5,1969.0,0.0011]
[1771323931944,1.73361365,1969.4,1969.0,0.0011]
[1771323934132,0.4641915,1969.3,1969.0,0.0011]
[1771323934647,5.07768863,1969.5,1968.8,0.0011]
[1771323934648,0.4641915,1969.1,1968.8,0.0011]
[1771323936143,0.4641915,1969.1,1968.7,0.0011]
[1771323936144,1.26968004,1969.0,1968.7,0.0011]
[1771323936351,5.95332145,1969.2,1968.7,0.0011]
[1771323937020,6.41751295,1969.2,1968.7,0.0011]
[1771323937646,5.54251295,1969.2,1968.7,0.0011]
[1771323937846,5.54251295,1969.2,1968.9,0.0011]
[1771323939155,5.07832145,1969.2,1968.9,0.0011]
[1771323939954,5.54251295,1969.2,1968.9,0.0011]
[1771323940162,0.4641915,1969.1,1968.8,0.0011]
[1771323940749,1.26968004,1969.0,1968.8,0.0011]
[1771323941659,1.73387154,1969.0,1968.8,0.0011]
[1771323943379,1.73387154,1969.0,1968.7,0.0011]
[1771323943676,1.26968004,1969.0,1968.7,0.0011]
[1771323943884,1.26966469,1969.1,1968.7,0.0011]
[1771323944038,2.15053219,1969.3,1968.7,0.45591574]
[1771323944361,1.26953219,1969.3,1968.7,0.45591574]
[1771323944746,2.15046246,1969.4,1968.7,0.45591574]
[1771323945264,2.15046246,1969.4,1968.9,0.48850073]
[1771323945863,1.26946246,1969.4,1968.9,0.48850073]
[1771323946067,1.26929325,1969.6,1968.9,0.48850073]
[1771323946435,5.96005785,1969.7,1969.1,0.48850073]
[1771323946436,0.001,1969.7,1969.1,0.48850073]
[1771323946634,1.27023537,1969.7,1969.1,0.48850073]
[1771323947058,0.001,1969.7,1969.1,0.48850073]
[1771323947363,0.001,1969.7,1969.3,0.48850073]
[1771323949864,0.001,1969.7,1969.2,1.26955108]
[1771323950171,0.001,1969.7,1969.2,1.75805181]
[1771323950761,0.001,1969.6,1969.2,0.48850073]
[1771323951371,0.001,1969.6,1969.2,1.75805068]
[1771323952966,0.001,1969.6,1969.3,0.48381033]
[1771323953153,0.001,1969.8,1969.3,0.48381033]
[1771323954280,0.001,1969.8,1969.3,0.995]
[1771323954587,0.001,1969.8,1969.1,2.74840262]
[1771323955075,0.001,1969.8,1969.2,0.48381033]
[1771323956886,0.001,1969.8,1969.3,1.75329694]
[1771323958885,0.001,1969.8,1969.4,0.48381033]
[1771323959384,0.001,1969.8,1969.3,0.48381033]
[1771323960584,0.001,1969.8,1969.2,5.07800908]
[1771323960982,0.001,1969.8,1969.3,0.48381033]
[1771323961751,0.001,1969.8,1969.4,0.48381033]
[1771323963181,0.001,1969.7,1969.4,1.75322121]
[1771323968375,0.001,1969.8,1969.5,0.48381033]
[1771323968798,0.001,1969.8,1969.5,2.75312937]
[1771323969698,0.001,1970.1,1969.7,5.21499842]
[1771323970113,1.26880377,1970.4,1969.8,0.48381033]
[1771323970400,5.53197956,1970.5,1969.9,1.48381033]
[1771323971471,0.4561201,1970.4,1969.9,1.0]
[1771323972590,0.4561201,1970.4,1969.9,2.26908831]
[1771323972900,5.07585946,1970.5,1969.9,1.0]
[1771323973366,5.53197956,1970.5,1969.9,1.0]
[1771323974599,0.001,1970.5,1970.0,5.18352887]
[1771323975405,0.001,1970.7,1970.2,5.18352887]
[1771323975604,0.001,1970.4,1970.2,5.18352887]
[1771323975769,0.001,1970.7,1970.2,5.18352887]
[1771323976264,0.001,1970.7,1970.3,1.0]
[1771323977092,0.46291187,1970.7,1970.3,1.0]
[1771323978082,1.26864914,1970.6,1970.3,1.0]
[1771323978393,0.46191187,1970.5,1969.8,1.72144666]
[1771323978588,0.46191187,1970.5,1969.9,0.855]
[1771323981399,1.26877791,1970.4,1969.9,2.12409607]
[1771323981903,5.53687249,1970.5,1969.9,2.57643685]
[1771323981904,1.73063087,1970.5,1969.9,2.57643685]
[1771323982606,1.73063087,1970.5,1969.9,1.30734078]
[1771323983300,0.46191187,1970.4,1969.9,0.855]
[1771323983499,1.2688423,1970.3,1969.9,0.855]
[1771323986608,1.2688423,1970.3,1969.9,1.30734078]
[1771323987612,1.2688423,1970.3,1970.0,0.0011]
[1771323990413,1.26977791,1970.4,1970.0,0.45344078]
[1771323991700,1.73168978,1970.4,1970.0,0.0011]
[1771323991898,0.46191187,1970.3,1970.0,0.0011]
[1771323993602,1.73081857,1970.2,1970.0,0.0011]
[1771323994690,0.46191187,1970.2,1970.0,0.0011]
[1771323994902,1.26889148,1970.3,1970.0,0.0011]
[1771323995200,1.73080335,1970.3,1970.0,0.0011]
[1771323995693,1.26889148,1970.3,1970.0,0.0011]
[1771323996889,1.73080335,1970.3,1970.0,0.0011]
[1771323997083,0.46191187,1970.2,1969.9,0.0011]
[1771323997405,0.46191187,1970.2,1969.7,0.0011]
[1771323997785,1.73088298,1970.1,1969.7,0.0011]
[1771323998185,0.46191187,1970.0,1969.7,0.0011]
[1771323999529,1.26897111,1970.1,1969.7,0.0011]
[1771323999693,5.07588447,1970.2,1970.0,0.0011]
[1771324000021,0.001,1970.2,1970.0,0.0011]
[1771324000800,0.46291187,1970.2,1970.0,0.0011]
[1771324002106,1.26897111,1970.1,1970.0,0.0011]
[1771324004519,5.07664756,1970.2,1969.7,0.0011]
[1771324004727,5.54774179,1970.2,1969.7,0.0011]
[1771324006923,0.47109423,1970.1,1969.7,0.0011]
[1771324009431,1.26903553,1970.0,1969.7,0.0011]
[1771324010640,1.74009791,1970.1,1969.7,0.0011]
[1771324011618,0.47109423,1970.1,1969.7,0.0011]
[1771324011815,1.26897197,1970.1,1969.8,0.0011]
[1771324015451,0.001,1970.2,1969.8,0.0011]
[1771324016251,0.4988307,1970.2,1969.8,0.0011]
[1771324016729,0.001,1970.2,1969.8,0.0011]
[1771324023776,0.001,1970.1,1969.8,0.0011]
[1771324026076,0.001,1970.1,1969.8,0.45500336]
[1771324026576,0.001,1970.1,1969.8,0.0011]
[1771324029891,0.4988307,1970.1,1969.8,0.0011]
[1771324031192,0.001,1970.1,1969.8,0.0011]
[1771324035769,0.001,1970.1,1969.9,0.0011]
[1771324035973,0.001,1970.0,1969.9,0.0011]
[1771324036170,0.001,1970.2,1969.9,0.0011]
[1771324036376,0.001,1970.2,1969.9,5.99211293]
[1771324036899,0.001,1970.4,1970.0,0.47364843]
[1771324037215,0.001,1970.4,1970.1,5.99101293]
[1771324037714,0.001,1970.4,1970.1,7.25995825]
[1771324038130,0.001,1970.7,1970.2,0.47364843]
[1771324038427,1.26958681,1970.7,1970.2,0.47364843]
[1771324038891,0.001,1970.7,1970.2,0.47364843]
[1771324039917,0.001,1970.7,1970.4,0.47364843]
[1771324040095,0.001,1970.7,1970.3,1.2688423]
[1771324040294,0.001,1970.7,1970.3,2.2588423]
[1771324040596,0.001,1970.7,1970.3,0.99]
[1771324040920,0.46702564,1970.7,1970.3,0.99]
[1771324042413,1.73564939,1970.7,1970.3,0.99]
[1771324046218,0.46602564,1970.6,1969.9,1.9041]
[1771324046515,0.46602564,1970.6,1969.9,0.0011]
[1771324047312,0.46602564,1970.5,1969.9,0.0011]
[1771324047912,0.46602564,1970.5,1970.4,0.0011]
[1771324048102,0.46602564,1970.5,1969.9,0.0011]
[1771324048310,1.73480355,1970.4,1970.3,0.0011]
[1771324048729,1.73480355,1970.4,1969.6,2.63751631]
[1771324048730,0.46602564,1970.3,1969.6,2.63751631]
[1771324049303,0.46602564,1970.3,1969.7,0.47364843]
[1771324050411,1.2688423,1970.4,1969.8,0.47364843]
[1771324050813,0.46602564,1970.3,1969.7,1.2691996]
[1771324052227,0.46602564,1970.3,1969.6,8.24825633]
[1771324052432,0.46602564,1970.1,1969.5,1.27040973]
[1771324052603,0.46602564,1970.1,1969.5,1.74405816]
[1771324055731,1.73500571,1970.1,1969.5,1.74405816]
[1771324056431,5.07564532,1970.2,1969.5,0.0011]
[1771324056432,1.73512559,1969.9,1969.5,0.0011]
[1771324056614,0.46602564,1969.8,1969.5,0.0011]
[1771324058802,1.26921257,1969.8,1969.5,0.0011]
[1771324059641,1.73523821,1969.8,1969.5,0.0011]
[1771324060004,1.73523821,1969.8,1969.6,0.0011]
[1771324064406,1.26914762,1969.9,1969.6,0.0011]
[1771324065047,0.47772059,1969.9,1969.6,0.0011]
[1771324065411,5.07727492,1970.0,1969.6,0.0011]
[1771324066344,0.47772059,1969.9,1969.6,0.0011]
[1771324067136,1.74688497,1969.8,1969.6,0.0011]
[1771324069245,0.47772059,1969.6,1969.4,0.0011]
[1771324069411,0.47772059,1969.6,1969.2,0.0011]
[1771324069412,0.47772059,1969.5,1969.2,0.0011]
[1771324069611,0.47772059,1969.5,1969.2,0.0022]
[1771324071644,1.26942215,1969.4,1969.3,0.0011]
[1771324074952,0.896,1969.6,1969.3,0.0011]
[1771324074953,2.16534698,1969.6,1969.3,0.0011]
[1771324075132,1.26934698,1969.6,1969.3,0.0011]
[1771324075949,1.26934698,1969.6,1969.3,0.0022]
[1771324078954,5.07717303,1969.7,1969.3,0.0022]
[1771324080344,5.56475995,1969.7,1969.3,0.0022]
[1771324080534,0.48758692,1969.6,1969.3,0.0022]
[1771324081332,1.2693577,1969.5,1969.3,0.0022]
[1771324082552,5.56501774,1969.6,1969.3,0.0022]
[1771324082962,0.48758692,1969.5,1969.3,0.0022]
[1771324083263,0.001,1969.4,1969.2,0.0011]
[1771324085636,1.27042215,1969.4,1969.2,0.0011]
[1771324085839,1.75800907,1969.4,1969.2,0.0011]
[1771324087083,1.27042215,1969.4,1969.2,0.0011]
[1771324087667,0.001,1969.4,1969.2,0.0011]
[1771324095070,0.001,1969.4,1969.3,0.0011]
[1771324095477,0.45307127,1969.4,1969.0,0.0011]
[1771324095777,0.45207127,1969.3,1969.0,0.0011]
[1771324097144,1.26955108,1969.2,1969.0,0.0011]
[1771324099474,0.45207127,1969.2,1969.0,0.0011]
[1771324100189,0.45207127,1969.2,1968.9,0.0011]
[1771324102387,1.26961556,1969.1,1968.9,0.0011]
[1771324104464,5.07846224,1969.2,1968.9,0.0011]
[1771324104465,1.26959873,1969.2,1968.9,0.0011]
[1771324106069,6.44315683,1969.3,1968.9,0.0011]
[1771324106270,2.18348661,1969.3,1968.9,0.0011]
[1771324106477,1.27046583,1969.4,1968.9,0.47816456]
[1771324106686,0.001,1969.4,1969.0,1.7467446]
[1771324107067,0.001,1969.4,1969.0,1.7478446]
[1771324107265,0.001,1969.1,1969.0,1.7478446]
[1771324107468,0.001,1969.1,1969.0,0.47816456]
[1771324108092,0.001,1969.1,1969.0,0.0011]
[1771324108495,0.001,1969.1,1969.0,0.47816456]
[1771324108714,0.001,1969.1,1969.0,1.7478446]
[1771324108875,1.26927257,1969.7,1969.1,0.47706456]
[1771324109073,0.001,1969.7,1969.1,0.47706456]
[1771324109279,1.27023637,1969.7,1969.1,0.47706456]
[1771324109583,0.001,1969.7,1969.1,0.47706456]
[1771324110504,1.27023127,1969.7,1969.1,0.47706456]
[1771324111301,4.7325807,1969.6,1969.1,1.74667838]
[1771324111480,1.27023127,1969.7,1969.2,0.47706456]
[1771324111883,1.26923127,1969.7,1969.2,0.47706456]
[1771324112109,0.001,1969.6,1969.2,0.47706456]
[1771324114689,0.001,1969.6,1969.2,1.74660412]
[1771324114888,0.001,1969.6,1969.2,0.47706456]
[1771324115403,0.001,1969.6,1969.2,1.74660741]
[1771324115608,0.001,1969.6,1969.2,0.47706456]
[1771324116588,0.001,1969.6,1969.2,1.7466112]
[1771324119530,0.001,1969.6,1969.3,0.47706456]
[1771324119694,0.001,1969.6,1969.2,1.26954664]
[1771324119901,0.001,1969.6,1969.3,0.0011]
[1771324120219,0.001,1969.5,1969.3,0.0011]
[1771324120601,0.002,1969.5,1969.3,0.0011]
[1771324123727,0.001,1969.5,1969.3,0.47816456]
[1771324125426,1.27006238,1970.0,1969.5,1.75239255]
[1771324125626,0.001,1969.8,1969.6,0.48303485]
[1771324126129,0.001,1970.0,1969.6,0.48303485]
[1771324126130,0.001,1970.0,1969.7,0.48303485]
[1771324126312,0.002,1970.0,1969.7,0.48303485]
[1771324127327,0.002,1970.0,1969.7,1.75224795]
[1771324127501,0.001,1970.0,1969.7,1.75224795]
[1771324131204,0.002,1970.0,1969.7,1.75224795]
[1771324132535,0.001,1969.9,1969.7,1.75224795]
[1771324134946,0.47808906,1969.9,1969.4,2.24641392]
[1771324135151,0.001,1969.8,1969.4,2.24641392]
[1771324135432,0.001,1969.8,1969.3,1.27053819]
[1771324135611,0.47808906,1969.8,1969.4,0.977]
[1771324136510,1.26922881,1969.7,1969.4,0.977]
[1771324136838,0.47708906,1969.6,1969.3,0.0011]
[1771324137036,0.47808906,1969.6,1969.3,0.0011]
[1771324137931,0.47708906,1969.6,1969.3,0.0001]
[1771324139038,1.74644676,1969.5,1969.3,0.0001]
[1771324140132,0.47708906,1969.5,1969.3,0.0001]
[1771324141645,1.74644913,1969.5,1969.3,0.0001]
[1771324142133,0.47708906,1969.5,1969.3,0.0001]
[1771324142333,0.47708906,1969.7,1969.3,0.0001]
[1771324142632,1.74631831,1969.7,1969.3,0.0001]
[1771324143211,0.47708906,1969.6,1969.3,0.0001]
[1771324144617,0.47708906,1969.6,1969.4,0.0011]
[1771324145744,1.74644676,1969.5,1969.4,0.0011]
[1771324146333,9.80962272,1969.8,1969.4,0.0011]
[1771324146334,1.74638204,1969.7,1969.4,0.0011]
[1771324146535,1.74630096,1969.8,1969.4,0.0011]
[1771324146843,0.47708906,1969.7,1969.4,0.0011]
[1771324147421,1.74630096,1969.8,1969.4,0.0011]
[1771324150049,1.74625643,1969.8,1969.4,0.0011]
[1771324150952,1.74625635,1969.8,1969.4,0.0011]
[1771324152053,1.26916729,1969.8,1969.4,0.0011]
[1771324152351,0.001,1969.9,1969.4,0.45719763]
[1771324154351,0.001,1969.9,1969.5,1.74775448]
[1771324155756,0.001,1969.9,1969.6,0.47839678]
[1771324156251,0.001,1969.9,1969.7,1.74762559]
[1771324156424,1.75102395,1970.5,1969.8,0.47839678]
[1771324156750,0.48226515,1970.4,1969.8,0.47839678]
[1771324157329,1.2687588,1970.5,1969.8,0.47839678]
[1771324158031,0.48226515,1970.4,1969.6,1.26924953]
[1771324158237,0.48226515,1970.4,1969.6,2.24224953]
[1771324158544,0.48226515,1970.2,1969.6,2.72064631]
[1771324159144,0.48226515,1970.2,1969.6,2.24224953]
[1771324159455,0.48226515,1970.2,1969.5,2.720709]
[1771324159624,0.48226515,1970.2,1969.5,2.24231222]
[1771324160754,1.75123626,1970.1,1969.5,2.24231222]
[1771324161264,0.48226515,1970.0,1969.5,2.24231222]
[1771324161656,0.48226515,1970.0,1969.5,1.26931222]
[1771324161859,0.48226515,1970.0,1969.4,2.72191893]
[1771324162864,1.7513651,1969.9,1969.4,0.0011]
[1771324163037,0.48226515,1969.7,1969.4,0.0011]
[1771324164955,0.48226515,1969.5,1969.4,0.0011]
[1771324166146,0.48226515,1969.5,1969.2,0.0011]
[1771324168341,1.7516706,1969.5,1969.2,0.0011]
[1771324168667,1.7516706,1969.5,1969.4,0.0011]
[1771324168668,0.48226515,1969.5,1969.4,0.0011]
[1771324169140,1.75162285,1969.5,1969.4,0.0011]
[1771324169941,1.2693577,1969.5,1969.4,0.0011]
[1771324170877,1.75149396,1969.7,1969.4,0.0011]
[1771324174072,0.48226515,1969.6,1969.4,0.0011]
[1771324176780,1.2693577,1969.5,1969.4,0.0011]